bitfinex/quotes_SOLUSD_20220129
["timestamp","ask_amount","ask_price","bid_price","bid_amount"]
[1643422923031,16.402,91.53,91.472,1.50730391]
[1643422923231,16.402,91.53,91.471,1.50730391]
[1643422923435,24.6171,91.529,91.473,0.25]
[1643422923635,24.6171,91.529,91.474,1.50730391]
[1643422923832,36.4864044,91.519,91.475,0.25]
[1643422924835,16.406,91.51,91.475,0.25]
[1643422925136,16.406,91.51,91.469,0.25]
[1643422925336,16.406,91.51,91.465,0.25]
[1643422925734,16.406,91.51,91.46,1.50730391]
[1643422925935,16.406,91.51,91.461,0.25]
[1643422927135,16.406,91.51,91.47,6.0]
[1643422927434,16.406,91.51,91.471,0.25]
[1643422927734,16.406,91.51,91.471,6.0]
[1643422928136,16.406,91.51,91.472,0.25]
[1643422929436,16.406,91.51,91.469,0.25]
[1643422929838,16.406,91.51,91.468,0.25]
[1643422930638,16.406,91.51,91.469,6.0]
[1643422930838,16.406,91.51,91.47,0.25]
[1643422931240,16.403,91.53,91.47,0.25]
[1643422931640,23.729,91.538,91.473,1.50730391]
[1643422931842,23.729,91.538,91.474,1.75730391]
[1643422932039,23.729,91.538,91.484,6.0]
[1643422932240,36.67165039,91.537,91.484,6.0]
[1643422932441,36.67165039,91.537,91.485,0.25]
[1643422933843,36.67165039,91.537,91.483,0.25]
[1643422934043,36.67165039,91.537,91.484,6.0]
[1643422934344,36.67165039,91.537,91.485,0.25]
[1643422934543,36.67165039,91.537,91.485,6.0]
[1643422934943,36.67165039,91.537,91.486,0.25]
[1643422935145,36.67165039,91.537,91.483,0.25]
[1643422935146,36.67165039,91.537,91.485,6.0]
[1643422935344,36.67165039,91.537,91.486,0.25]
[1643422936570,36.67165039,91.537,91.484,0.25]
[1643422936771,36.67165039,91.537,91.482,6.0]
[1643422936974,36.67165039,91.537,91.484,6.0]
[1643422937370,36.67165039,91.537,91.485,0.25]
[1643422937570,36.67165039,91.537,91.481,6.0]
[1643422937771,16.402,91.53,91.481,6.0]
[1643422937971,16.402,91.53,91.469,7.50730391]
[1643422938174,32.172,91.53,91.47,0.25]
[1643422938571,32.172,91.53,91.471,6.0]
[1643422938771,32.172,91.53,91.472,0.25]
[1643422938972,32.172,91.53,91.475,6.0]
[1643422939371,32.172,91.53,91.476,0.25]
[1643422940472,32.172,91.53,91.477,6.0]
[1643422940874,32.172,91.53,91.48,6.0]
[1643422941275,32.172,91.53,91.481,0.25]
[1643422941872,32.172,91.53,91.48,6.0]
[1643422942072,32.172,91.53,91.481,0.25]
[1643422944276,32.172,91.53,91.48,6.0]
[1643422945277,32.172,91.53,91.464,1.50730391]
[1643422945480,32.172,91.53,91.471,0.25]
[1643422946179,32.172,91.53,91.462,1.50730391]
[1643422946380,32.172,91.53,91.463,0.25]
[1643422947378,32.172,91.53,91.461,0.25]
[1643422947779,32.172,91.53,91.46,1.75730391]
[1643422947978,32.172,91.53,91.46,0.25]
[1643422949182,16.406,91.51,91.459,1.50730391]
[1643422949381,39.28577241,91.509,91.458,1.50730391]
[1643422949581,39.28577241,91.509,91.436,24.6821]
[1643422949582,63.53567241,91.509,91.454,1.50730391]
[1643422949782,63.53567241,91.509,91.436,24.6821]
[1643422949783,63.53567241,91.509,91.448,1.50730391]
[1643422949983,15.77,91.5,91.446,1.50730391]
[1643422950183,15.77,91.5,91.436,24.6821]
[1643422950987,32.178,91.5,91.436,24.6821]
[1643422951184,32.178,91.5,91.437,0.25]
[1643422951388,32.178,91.5,91.435,1.50730391]
[1643422951787,32.178,91.5,91.432,1.50730391]
[1643422952286,32.178,91.5,91.43,1.50730391]
[1643422952487,32.178,91.5,91.429,1.50730391]
[1643422952688,32.178,91.5,91.426,1.50730391]
[1643422953289,0.25,91.499,91.427,1.50730391]
[1643422953490,39.12297098,91.479,91.427,1.50730391]
[1643422953688,39.12297098,91.479,91.425,1.50730391]
[1643422953890,39.12297098,91.479,91.426,0.25]
[1643422954988,39.12297098,91.479,91.433,6.0]
[1643422955388,39.12297098,91.479,91.434,0.25]
[1643422956488,39.12297098,91.479,91.424,0.25]
[1643422956889,39.12297098,91.479,91.423,23.6891]
[1643422957289,0.25,91.478,91.423,23.6891]
[1643422957888,39.12297098,91.479,91.423,23.6891]
[1643422959392,39.12297098,91.479,91.424,0.25]
[1643422961599,23.877,91.478,91.419,0.25]
[1643422961999,23.877,91.478,91.41,1.50730391]
[1643422962215,23.877,91.478,91.412,0.25]
[1643422962916,23.877,91.478,91.413,1.50730391]
[1643422963116,23.877,91.478,91.414,1.50730391]
[1643422963316,23.877,91.478,91.415,0.25]
[1643422963516,23.877,91.478,91.409,1.75730391]
[1643422964118,23.877,91.478,91.411,1.50730391]
[1643422964321,23.877,91.478,91.412,0.25]
[1643422965121,23.877,91.478,91.421,6.0]
[1643422965322,39.12297098,91.479,91.422,0.25]
[1643422965520,39.12297098,91.479,91.423,6.0]
[1643422966022,39.12297098,91.479,91.429,6.0]
[1643422966223,39.12297098,91.479,91.424,0.25]
[1643422966921,39.12297098,91.479,91.42,0.25]
[1643422968723,39.12297098,91.479,91.42,1.75730391]
[1643422969223,39.12297098,91.479,91.422,1.50730391]
[1643422969421,39.12297098,91.479,91.423,0.25]
[1643422971124,39.12297098,91.479,91.42,0.25]
[1643422971725,22.6822,91.478,91.42,0.25]
[1643422972827,16.413,91.47,91.42,0.25]
[1643422973629,16.413,91.47,91.415,1.50730391]
[1643422973829,16.413,91.47,91.42,0.25]
[1643422974929,16.413,91.47,91.415,1.50730391]
[1643422974930,16.413,91.47,91.417,0.25]
[1643422975129,16.413,91.47,91.416,0.25]
[1643422975729,16.413,91.47,91.411,1.50730391]
[1643422975930,16.413,91.47,91.414,1.75730391]
[1643422976230,16.413,91.47,91.415,1.50730391]
[1643422976431,16.413,91.47,91.414,1.50730391]
[1643422976931,16.413,91.47,91.415,0.25]
[1643422977731,16.413,91.47,91.415,1.75730391]
[1643422977932,16.413,91.47,91.415,1.50730391]
[1643422978131,16.413,91.47,91.419,1.50730391]
[1643422978332,16.413,91.47,91.42,0.25]
[1643422978532,16.413,91.47,91.42,1.75730391]
[1643422978831,16.413,91.47,91.42,0.25]
[1643422979236,16.413,91.47,91.42,1.75730391]
[1643422979433,16.413,91.47,91.42,0.25]
[1643422979834,16.413,91.47,91.419,0.25]
[1643422980038,16.413,91.47,91.418,1.50730391]
[1643422980234,16.413,91.47,91.407,24.6091]
[1643422980235,19.36969142,91.47,91.417,1.50730391]
[1643422980433,16.413,91.47,91.419,0.25]
[1643422981644,16.413,91.47,91.416,1.50730391]
[1643422981840,0.25,91.469,91.419,0.25]
[1643422982039,16.415,91.46,91.419,0.25]
[1643422982940,16.415,91.46,91.417,0.25]
[1643422983440,16.415,91.46,91.416,0.25]
[1643422983639,16.415,91.46,91.415,0.25]
[1643422987944,16.415,91.46,91.41,1.50730391]
[1643422988143,32.185,91.46,91.41,1.50730391]
[1643422988342,32.185,91.46,91.407,24.6091]
[1643422989242,16.416,91.45,91.407,24.6091]
[1643422989443,39.91409844,91.449,91.408,0.25]
[1643422989645,64.72509844,91.449,91.407,0.25]
[1643422989843,64.72509844,91.449,91.404,0.25]
[1643422990244,64.72509844,91.449,91.404,1.50730391]
[1643422990443,64.72509844,91.449,91.404,1.75730391]
[1643422990645,64.72509844,91.449,91.405,1.50730391]
[1643422990846,64.72509844,91.449,91.406,0.25]
[1643422992250,64.72509844,91.449,91.403,1.50730391]
[1643422992447,64.72509844,91.449,91.405,0.25]
[1643422993448,64.72509844,91.449,91.403,0.25]
[1643422993649,64.72509844,91.449,91.405,1.50730391]
[1643422993848,64.72509844,91.449,91.406,0.25]
[1643422994049,64.72509844,91.449,91.407,1.50730391]
[1643422994250,64.72509844,91.449,91.408,1.50730391]
[1643422994452,39.91409844,91.449,91.408,1.50730391]
[1643422994651,39.91409844,91.449,91.409,0.25]
[1643422995854,39.91409844,91.449,91.408,0.25]
[1643422996277,39.91409844,91.449,91.408,1.75730391]
[1643422996479,39.91409844,91.449,91.408,1.50730391]
[1643422996678,39.91409844,91.449,91.409,1.75730391]
[1643422996879,39.91409844,91.449,91.41,0.25]
[1643422997080,39.91409844,91.449,91.41,1.75730391]
[1643422997280,39.91409844,91.449,91.41,0.25]
[1643422998281,39.91409844,91.449,91.41,1.75730391]
[1643422998482,39.91409844,91.449,91.41,1.50730391]
[1643422998682,39.91409844,91.449,91.411,1.75730391]
[1643422998883,39.91409844,91.449,91.412,0.25]
[1643422999183,39.91409844,91.449,91.413,1.50730391]
[1643422999383,39.91409844,91.449,91.414,0.25]
[1643423001386,39.91409844,91.449,91.413,0.25]
[1643423001988,39.91409844,91.449,91.413,1.75730391]
[1643423002189,39.91409844,91.449,91.413,0.25]
[1643423002789,39.91409844,91.449,91.413,1.75730391]
[1643423002989,32.184,91.46,91.413,1.50730391]
[1643423003190,15.77,91.46,91.414,0.25]
[1643423003389,22.645,91.469,91.423,6.0]
[1643423003590,19.33909243,91.488,91.423,6.0]
[1643423003892,1.48867009,91.52,91.435,1.50730391]
[1643423004089,28.56434274,91.569,91.45,1.50730391]
[1643423004090,1.48867009,91.535,91.45,1.50730391]
[1643423004290,1.48867009,91.535,91.445,6.0]
[1643423004291,1.48867009,91.548,91.463,1.50730391]
[1643423004491,1.48867009,91.556,91.472,1.50730391]
[1643423004689,1.48867009,91.56,91.475,1.50730391]
[1643423004890,74.49902615,91.576,91.476,48.5563]
[1643423005097,35.99503917,91.575,91.486,6.0]
[1643423005291,35.99503917,91.575,91.487,24.9886]
[1643423005695,35.99503917,91.575,91.497,6.0]
[1643423005893,35.99503917,91.575,91.498,0.25]
[1643423006092,35.99503917,91.575,91.498,17.65]
[1643423006293,35.99503917,91.575,91.498,17.4]
[1643423006493,2.95669142,91.574,91.476,24.7274]
[1643423006694,15.77,91.56,91.472,1.50730391]
[1643423006992,2.95669142,91.559,91.465,1.50730391]
[1643423007195,33.58902849,91.559,91.447,47.1409]
[1643423007393,30.63233707,91.558,91.447,47.1409]
[1643423007594,33.58902849,91.558,91.447,47.1409]
[1643423007793,56.3502584,91.557,91.448,0.25]
[1643423007995,56.3502584,91.557,91.457,6.0]
[1643423008194,2.95669142,91.556,91.457,6.0]
[1643423008494,32.1003584,91.556,91.458,0.25]
[1643423008696,11.26262426,91.555,91.458,0.25]
[1643423008895,14.21931568,91.555,91.458,0.25]
[1643423009096,37.50352691,91.539,91.458,0.25]
[1643423009595,37.50352691,91.539,91.448,0.25]
[1643423010098,2.95669142,91.538,91.448,0.25]
[1643423010296,16.403,91.53,91.448,0.25]
[1643423010497,16.403,91.53,91.439,6.0]
[1643423010696,3.20669142,91.529,91.438,6.0]
[1643423010896,3.20669142,91.529,91.428,23.0157]
[1643423010897,3.20669142,91.529,91.439,0.25]
[1643423011096,3.20669142,91.529,91.428,23.2657]
[1643423011097,2.95669142,91.528,91.438,6.0]
[1643423011497,2.95669142,91.528,91.439,0.25]
[1643423012097,2.95669142,91.528,91.439,6.25]
[1643423013398,2.95669142,91.528,91.439,0.25]
[1643423013997,16.405,91.52,91.439,0.25]
[1643423014299,0.25,91.519,91.439,0.25]
[1643423015401,41.30018773,91.509,91.439,0.25]
[1643423021510,41.30018773,91.509,91.439,6.25]
[1643423021810,41.30018773,91.509,91.439,0.25]
[1643423022627,41.30018773,91.509,91.44,6.0]
[1643423022827,41.30018773,91.509,91.441,0.25]
[1643423024429,41.30018773,91.509,91.441,6.0]
[1643423024833,41.30018773,91.509,91.442,0.25]
[1643423025634,41.30018773,91.509,91.443,6.0]
[1643423025832,41.30018773,91.509,91.444,0.25]
[1643423027534,41.30018773,91.509,91.444,6.0]
[1643423027935,41.30018773,91.509,91.445,0.25]
[1643423029637,41.30018773,91.509,91.447,6.0]
[1643423029836,41.30018773,91.509,91.448,0.25]
[1643423030641,41.30018773,91.509,91.449,6.0]
[1643423030840,41.30018773,91.509,91.45,0.25]
[1643423032241,41.30018773,91.509,91.446,1.50730391]
[1643423032439,41.30018773,91.509,91.447,0.25]
[1643423034739,41.30018773,91.509,91.447,1.75730391]
[1643423034942,41.30018773,91.509,91.447,1.50730391]
[1643423035140,41.30018773,91.509,91.451,1.50730391]
[1643423035342,41.30018773,91.509,91.452,0.25]
[1643423035543,41.30018773,91.509,91.452,1.75730391]
[1643423037145,41.30018773,91.509,91.452,0.25]
[1643423037844,41.30018773,91.509,91.452,1.75730391]
[1643423038045,41.30018773,91.509,91.452,1.50730391]
[1643423038348,41.30018773,91.509,91.455,1.50730391]
[1643423038545,41.30018773,91.509,91.456,1.50730391]
[1643423038945,41.30018773,91.509,91.457,0.25]
[1643423040448,41.30018773,91.509,91.455,1.50730391]
[1643423040645,41.30018773,91.509,91.456,1.75730391]
[1643423041851,41.30018773,91.509,91.456,0.25]
[1643423044650,41.30018773,91.509,91.456,1.75730391]
[1643423044849,41.30018773,91.509,91.457,0.25]
[1643423045846,41.30018773,91.509,91.456,0.25]
[1643423046449,41.30018773,91.509,91.456,1.75730391]
[1643423046650,41.30018773,91.509,91.456,1.50730391]
[1643423046852,41.30018773,91.509,91.457,0.25]
[1643423047850,41.30018773,91.509,91.456,0.25]
[1643423049448,41.30018773,91.509,91.452,1.50730391]
[1643423049650,41.30018773,91.509,91.453,0.25]
[1643423049953,16.409,91.5,91.453,0.25]
[1643423050750,16.409,91.5,91.439,0.25]
[1643423051153,16.409,91.5,91.437,1.50730391]
[1643423051350,16.409,91.5,91.438,0.25]
[1643423052552,0.25,91.499,91.438,0.25]
[1643423053153,0.25,91.499,91.434,1.50730391]
[1643423053353,16.41,91.49,91.435,0.25]
[1643423053757,2.95669142,91.498,91.424,1.50730391]
[1643423053758,23.0522,91.489,91.424,1.50730391]
[1643423053960,40.83726795,91.479,91.419,1.50730391]
[1643423054156,23.29094306,91.478,91.413,1.50730391]
[1643423054357,16.414,91.47,91.413,1.50730391]
[1643423054558,15.77,91.46,91.405,1.50730391]
[1643423054758,15.77,91.46,91.395,1.50730391]
[1643423054959,15.77,91.46,91.367,3.04265962]
[1643423054960,47.1825,91.459,91.393,1.50730391]
[1643423055562,47.1825,91.459,91.392,1.50730391]
[1643423055981,16.42,91.45,91.393,0.25]
[1643423056182,34.53119895,91.449,91.393,0.25]
[1643423056981,34.53119895,91.449,91.379,1.50730391]
[1643423057181,34.53119895,91.449,91.38,0.25]
[1643423057382,34.53119895,91.449,91.377,1.75730391]
[1643423057582,34.53119895,91.449,91.387,6.0]
[1643423057783,34.53119895,91.449,91.388,0.25]
[1643423057983,16.42,91.44,91.388,0.25]
[1643423058482,16.42,91.44,91.388,6.25]
[1643423058683,16.42,91.44,91.388,0.25]
[1643423059085,16.42,91.44,91.387,6.0]
[1643423059285,16.42,91.44,91.388,0.25]
[1643423060584,16.42,91.44,91.387,0.25]
[1643423069797,34.53119895,91.449,91.387,0.25]
[1643423070200,34.53119895,91.449,91.387,24.7732]
[1643423073398,0.25,91.448,91.387,24.7732]
[1643423083704,0.25,91.448,91.392,1.50730391]
[1643423083903,0.25,91.448,91.393,0.25]
[1643423086208,0.25,91.448,91.393,1.75730391]
[1643423086408,0.25,91.448,91.394,0.25]
[1643423087507,0.25,91.448,91.392,1.75730391]
[1643423088111,34.53119895,91.449,91.392,1.75730391]
[1643423088311,34.53119895,91.449,91.402,6.0]
[1643423088511,34.53119895,91.449,91.406,6.0]
[1643423088712,34.53119895,91.449,91.403,0.25]
[1643423089114,34.53119895,91.449,91.403,0.2195102]
[1643423089935,34.53119895,91.449,91.392,1.50730391]
[1643423090136,34.53119895,91.449,91.387,26.03050391]
[1643423090938,34.53119895,91.449,91.39,1.50730391]
[1643423091337,34.53119895,91.449,91.391,0.25]
[1643423091637,34.53119895,91.449,91.389,1.50730391]
[1643423091940,34.53119895,91.449,91.391,1.50730391]
[1643423092338,34.53119895,91.449,91.392,0.25]
[1643423092539,32.185,91.47,91.393,1.50730391]
[1643423092739,1.48867009,91.476,91.397,1.50730391]
[1643423092943,24.8192,91.487,91.414,1.50730391]
[1643423093139,24.8192,91.487,91.398,6.0]
[1643423093140,1.48867009,91.498,91.424,6.0]
[1643423093340,1.48867009,91.502,91.425,0.25]
[1643423093540,40.31984892,91.501,91.433,6.0]
[1643423093840,40.31984892,91.501,91.425,0.25]
[1643423093841,40.31984892,91.501,91.434,0.25]
[1643423094046,40.31984892,91.501,91.437,6.0]
[1643423094244,1.48867009,91.496,91.426,0.25]
[1643423094544,1.48867009,91.496,91.399,46.2452]
[1643423094545,1.48867009,91.487,91.409,1.50730391]
[1643423094741,1.48867009,91.487,91.419,0.25]
[1643423094944,1.48867009,91.483,91.419,0.25]
[1643423095142,1.48867009,91.479,91.415,6.0]
[1643423095346,16.417,91.46,91.415,6.0]
[1643423095543,16.417,91.46,91.399,46.2452]
[1643423095544,16.417,91.46,91.41,6.0]
[1643423095744,43.15036377,91.459,91.41,6.0]
[1643423095942,43.40036377,91.459,91.409,6.0]
[1643423096144,43.40036377,91.459,91.399,46.2452]
[1643423096343,2.95669142,91.458,91.399,46.2452]
[1643423096544,2.95669142,91.458,91.4,0.25]
[1643423096842,0.25,91.457,91.4,0.25]
[1643423099547,16.418,91.45,91.4,0.25]
[1643423099946,0.25,91.449,91.4,0.25]
[1643423101747,0.25,91.449,91.389,0.25]
[1643423101748,16.42,91.44,91.389,0.25]
[1643423102151,0.25,91.439,91.387,6.0]
[1643423102349,0.25,91.439,91.388,0.25]
[1643423102747,66.0,91.438,91.387,5.75]
[1643423102947,0.25,91.439,91.388,0.25]
[1643423103150,15.77,91.45,91.388,0.25]
[1643423103950,15.77,91.45,91.372,1.50730391]
[1643423104150,36.46956743,91.429,91.371,1.50730391]
[1643423104349,36.46956743,91.429,91.373,6.0]
[1643423104552,36.46956743,91.429,91.381,6.0]
[1643423104950,36.46956743,91.429,91.382,0.25]
[1643423106253,36.46956743,91.429,91.38,0.25]
[1643423106856,36.46956743,91.429,91.378,0.25]
[1643423109659,36.46956743,91.429,91.365,1.50730391]
[1643423109660,36.46956743,91.429,91.366,0.25]
[1643423110158,36.46956743,91.429,91.364,1.75730391]
[1643423112260,36.46956743,91.429,91.364,0.25]
[1643423112664,36.46956743,91.429,91.373,6.0]
[1643423112861,36.46956743,91.429,91.374,23.61]
[1643423113061,36.46956743,91.429,91.384,6.0]
[1643423113262,36.46956743,91.429,91.385,0.25]
[1643423113862,36.46956743,91.429,91.384,5.75]
[1643423114065,36.46956743,91.429,91.385,0.25]
[1643423114764,2.95669142,91.461,91.385,0.25]
[1643423114966,15.77,91.46,91.385,0.25]
[1643423115165,1.48867009,91.49,91.392,1.50730391]
[1643423115364,1.48867009,91.49,91.394,6.0]
[1643423115566,1.48867009,91.497,91.402,6.0]
[1643423115765,34.93088582,91.489,91.403,46.7589]
[1643423116167,34.93088582,91.489,91.413,6.0]
[1643423116366,34.93088582,91.489,91.414,23.7377]
[1643423116566,34.93088582,91.489,91.424,6.0]
[1643423116767,34.93088582,91.489,91.425,0.25]
[1643423120173,34.93088582,91.489,91.424,6.0]
[1643423120372,34.93088582,91.489,91.425,0.25]
[1643423122272,34.93088582,91.489,91.425,24.7487]
[1643423127106,34.93088582,91.489,91.435,6.0]
[1643423127304,34.93088582,91.489,91.436,0.25]
[1643423128704,34.93088582,91.489,91.426,0.25]
[1643423130306,34.93088582,91.489,91.435,6.0]
[1643423130706,34.93088582,91.489,91.436,0.25]
[1643423130904,34.93088582,91.489,91.426,0.25]
[1643423133607,34.93088582,91.489,91.435,6.0]
[1643423133810,34.93088582,91.489,91.436,0.25]
[1643423134809,0.25,91.488,91.395,1.50730391]
[1643423135009,0.25,91.488,91.39,16.409]
[1643423135010,0.25,91.488,91.404,22.6974]
[1643423135611,25.1741,91.488,91.404,22.6974]
[1643423135814,16.413,91.48,91.384,1.50730391]
[1643423136012,15.77,91.47,91.376,1.50730391]
[1643423136313,23.9831,91.469,91.354,50.07680391]
[1643423136512,26.93979142,91.469,91.357,1.50730391]
[1643423136711,23.9831,91.469,91.357,1.50730391]
[1643423136911,23.9831,91.469,91.359,1.50730391]
[1643423137112,23.9831,91.469,91.369,6.0]
[1643423137317,23.9831,91.469,91.37,23.4756]
[1643423137512,23.9831,91.469,91.38,6.0]
[1643423137714,23.9831,91.469,91.37,23.4756]
[1643423138413,23.9831,91.469,91.38,6.0]
[1643423138613,23.9831,91.469,91.381,29.8053]
[1643423138817,23.9831,91.469,91.381,30.0553]
[1643423140017,16.417,91.46,91.381,24.0553]
[1643423140220,15.77,91.45,91.381,24.0553]
[1643423140423,0.25,91.449,91.381,24.0553]
[1643423143122,0.25,91.449,91.381,0.25]
[1643423143323,0.25,91.449,91.362,0.25]
[1643423143526,0.25,91.449,91.358,1.50730391]
[1643423143724,2.95669142,91.448,91.355,24.0152]
[1643423144123,0.25,91.447,91.355,24.0152]
[1643423144928,0.25,91.447,91.356,0.25]
[1643423145429,0.25,91.449,91.356,0.25]
[1643423145827,16.49656819,91.446,91.356,0.25]
[1643423146227,24.0663,91.445,91.356,0.25]
[1643423146428,32.193,91.44,91.356,0.25]
[1643423146929,0.25,91.439,91.356,0.25]
[1643423147129,11.8,91.439,91.356,0.25]
[1643423149230,11.8,91.439,91.365,6.0]
[1643423149430,11.8,91.439,91.366,23.9798]
[1643423149632,11.8,91.439,91.366,24.2298]
[1643423149858,11.8,91.439,91.367,0.25]
[1643423150760,11.55,91.439,91.368,2.88645602]
[1643423151161,11.55,91.439,91.366,23.9798]
[1643423152160,0.25,91.438,91.366,23.9798]
[1643423152362,0.25,91.439,91.367,0.25]
[1643423155367,0.25,91.439,91.376,6.0]
[1643423155565,0.25,91.439,91.377,23.5682]
[1643423155767,0.25,91.439,91.377,23.8182]
[1643423164073,15.77,91.44,91.377,23.8182]
[1643423164273,15.77,91.44,91.387,6.0]
[1643423164672,23.8163,91.445,91.388,9.13645602]
[1643423164872,34.41472532,91.459,91.388,3.13645602]
[1643423165074,1.48867009,91.467,91.398,6.0]
[1643423165273,23.1132,91.469,91.399,0.25]
[1643423165572,23.1132,91.469,91.399,6.25]
[1643423165773,0.25,91.468,91.399,6.25]
[1643423165975,44.61034594,91.468,91.4,23.2153]
[1643423166372,44.61034594,91.468,91.41,6.0]
[1643423166574,0.25,91.468,91.411,22.8849]
[1643423166775,1.48867009,91.486,91.411,23.1349]
[1643423166976,22.9041,91.497,91.421,6.0]
[1643423167180,22.9041,91.497,91.422,23.1328]
[1643423167375,22.9041,91.497,91.422,23.3828]
[1643423167575,36.61843683,91.496,91.422,23.3828]
[1643423167782,1.48867009,91.514,91.423,2.88645602]
[1643423167988,1.48867009,91.514,91.432,6.0]
[1643423168184,1.48867009,91.526,91.433,30.7749]
[1643423168384,1.48867009,91.533,91.436,1.50730391]
[1643423168685,36.19627363,91.532,91.446,6.0]
[1643423168885,1.48867009,91.54,91.447,108.75]
[1643423169084,22.621,91.548,91.457,6.0]
[1643423169286,1.48867009,91.574,91.458,0.25]
[1643423169486,1.48867009,91.575,91.458,108.75]
[1643423169786,23.1969,91.579,91.459,8.88645602]
[1643423169988,37.0786502,91.578,91.469,108.5]
[1643423170187,37.0786502,91.578,91.471,65.23]
[1643423170388,1.48867009,91.593,91.472,108.75]
[1643423170587,1.48867009,91.599,91.482,71.23]
[1643423170789,1.48867009,91.604,91.484,65.23]
[1643423170987,15.77,91.61,91.494,6.0]
[1643423170988,1.48867009,91.606,91.494,6.0]
[1643423171291,42.51104409,91.602,91.495,0.25]
[1643423171491,42.51104409,91.602,91.495,111.63645602]
[1643423171688,42.51104409,91.602,91.495,114.75]
[1643423171889,42.51104409,91.602,91.496,2.88645602]
[1643423172088,42.51104409,91.602,91.506,114.5]
[1643423172298,42.51104409,91.602,91.507,0.25]
[1643423172490,42.51104409,91.602,91.507,3.13645602]
[1643423172689,15.77,91.61,91.508,2.88645602]
[1643423172888,15.77,91.61,91.518,108.5]
[1643423173089,1.48867009,91.646,91.53,16.385]
[1643423173291,47.5839,91.649,91.532,108.5]
[1643423173589,36.94665623,91.648,91.542,6.0]
[1643423173797,36.94665623,91.648,91.543,0.25]
[1643423173991,36.94665623,91.648,91.543,6.25]
[1643423174191,15.77,91.66,91.55,16.38]
[1643423174391,1.48867009,91.671,91.552,6.0]
[1643423174690,1.48867009,91.681,91.56,15.77]
[1643423174893,1.48867009,91.688,91.561,0.25]
[1643423175191,46.07881715,91.687,91.6,16.372]
[1643423175390,46.07881715,91.687,91.601,0.25]
[1643423175589,46.07881715,91.687,91.61,6.0]
[1643423175791,46.07881715,91.687,91.611,0.25]
[1643423176417,0.25,91.686,91.611,0.25]
[1643423178715,2.95669142,91.685,91.561,23.3333]
[1643423178920,0.25,91.684,91.611,0.25]
[1643423179115,15.77,91.68,91.611,0.25]
[1643423179318,0.25,91.679,91.561,23.3333]
[1643423179616,3.20669142,91.679,91.561,23.3333]
[1643423179815,28.83870172,91.678,91.561,23.3333]
[1643423180216,16.381,91.67,91.561,23.3333]
[1643423180417,0.25,91.669,91.561,23.3333]
[1643423180619,3.20669142,91.669,91.571,6.0]
[1643423180818,2.95669142,91.668,91.572,0.25]
[1643423181219,0.25,91.667,91.572,0.25]
[1643423181621,2.95669142,91.666,91.572,0.25]
[1643423181819,16.382,91.66,91.572,0.25]
[1643423182020,38.51980008,91.659,91.572,0.25]
[1643423182220,66.5162915,91.659,91.562,0.25]
[1643423182420,2.95669142,91.658,91.541,0.25]
[1643423182821,0.25,91.657,91.541,0.25]
[1643423183121,16.384,91.65,91.525,48.7219]
[1643423183320,15.77,91.64,91.525,48.7219]
[1643423183522,15.77,91.64,91.535,6.0]
[1643423183721,3.20669142,91.639,91.535,6.0]
[1643423184223,42.13624235,91.629,91.535,6.0]
[1643423184423,0.25,91.628,91.536,0.25]
[1643423184825,0.25,91.628,91.536,108.75]